[Event "Vener-dì-Lampo"]
[Site "Chess.com"]
[Date "2020.05.29"]
[Round "4"]
[White "pedrak"]
[Black "fisherpez"]
[Result "1-0"]
[WhiteElo "1995"]
[BlackElo "1714"]
[TimeControl "300+2"]
[EndTime "12:52:49 PDT"]
[Termination "pedrak ha vinto per tempo"]

1. Nf3 {[%clk 0:05:01.9]} 1... e6 {[%clk 0:04:59.9]} 2. g3 {[%clk 0:04:58.3]}
2... b6 {[%clk 0:05:00.8]} 3. Bg2 {[%clk 0:04:51.5]} 3... Nc6 {[%clk 0:05:02.3]}
4. d4 {[%clk 0:04:48.2]} 4... Bb7 {[%clk 0:05:03.2]} 5. O-O {[%clk 0:04:44.4]}
5... Nf6 {[%clk 0:05:00.9]} 6. c3 {[%clk 0:04:40.3]} 6... Be7 {[%clk 0:05:01.5]}
7. Re1 {[%clk 0:04:39.9]} 7... O-O {[%clk 0:05:02.5]} 8. e4 {[%clk 0:04:39.9]}
8... d6 {[%clk 0:05:00.9]} 9. Nbd2 {[%clk 0:04:39.9]} 9... g6 {[%clk 0:04:57.2]}
10. h3 {[%clk 0:04:36.9]} 10... Nd7 {[%clk 0:04:57.4]} 11. Nf1 {[%clk
0:04:36.6]} 11... e5 {[%clk 0:04:57.2]} 12. d5 {[%clk 0:04:35.5]} 12... Ncb8
{[%clk 0:04:57.7]} 13. Bh6 {[%clk 0:04:34.9]} 13... Re8 {[%clk 0:04:58.2]} 14.
Qd2 {[%clk 0:04:33.7]} 14... Bf8 {[%clk 0:04:58.5]} 15. Bxf8 {[%clk 0:04:33.2]}
15... Nxf8 {[%clk 0:04:59.5]} 16. Qh6 {[%clk 0:04:31.4]} 16... Qf6 {[%clk
0:05:00.3]} 17. Ne3 {[%clk 0:04:14.7]} 17... Qg7 {[%clk 0:05:00.6]} 18. Qh4
{[%clk 0:04:14.8]} 18... Nbd7 {[%clk 0:04:55.7]} 19. Ng4 {[%clk 0:04:13.2]}
19... Kh8 {[%clk 0:04:50.9]} 20. Nh6 {[%clk 0:03:55.3]} 20... f6 {[%clk
0:03:44.4]} 21. g4 {[%clk 0:03:26.9]} 21... Bc8 {[%clk 0:03:36.7]} 22. g5 {[%clk
0:03:25.7]} 22... Re7 {[%clk 0:03:03.7]} 23. gxf6 {[%clk 0:02:49.5]} 23... Qxf6
{[%clk 0:03:01.4]} 24. Qg3 {[%clk 0:02:46.3]} 24... Nc5 {[%clk 0:02:40.3]} 25.
Ng5 {[%clk 0:02:39]} 25... Bd7 {[%clk 0:02:07.9]} 26. Re2 {[%clk 0:02:35.2]}
26... Rg7 {[%clk 0:02:00.4]} 27. Re3 {[%clk 0:02:31.8]} 27... Be8 {[%clk
0:01:43.9]} 28. b4 {[%clk 0:02:20.6]} 28... Ncd7 {[%clk 0:01:29.6]} 29. Rf3
{[%clk 0:02:19.9]} 29... Qe7 {[%clk 0:01:29.9]} 30. h4 {[%clk 0:01:47.3]} 30...
Nf6 {[%clk 0:01:29.4]} 31. Bh3 {[%clk 0:01:41.9]} 31... Nh5 {[%clk 0:01:28.7]}
32. Qg4 {[%clk 0:01:34.1]} 32... Nf4 {[%clk 0:01:03.6]} 33. Rxf4 {[%clk
0:01:07.6]} 33... exf4 {[%clk 0:01:00.4]} 34. Qxf4 {[%clk 0:01:08.4]} 34... Nd7
{[%clk 0:00:55.1]} 35. Ne6 {[%clk 0:00:53.8]} 35... Nf6 {[%clk 0:00:24.8]} 36.
Nxg7 {[%clk 0:00:50.7]} 36... Qxg7 {[%clk 0:00:25.7]} 37. Be6 {[%clk 0:00:43.6]}
37... Rd8 {[%clk 0:00:14.5]} 38. Rc1 {[%clk 0:00:42.3]} 1-0